Workbook

Sheet Controlador de Pontuação
B1: Insira suas Pontuações Aqui
C3: Classe | D3: Tipo | E3: Descrição | F3: Pontuação
C4: Francês Moderno | D4: Lição de Casa | E4: História da Segunda Guerra Mundial | F4: 80%
C5: Programação Avançada em Java | D5: Metade do semestre | F5: 75%
C6: Espanhol | D6: Lição de Casa | F6: 50%
C7: Física Teórica | D7: Lição de Casa | F7: 95%
C8: Francês Moderno | D8: Lição de Casa | E8: História da Primeira Guerra Mundial | F8: 90%
C9: Francês Moderno | D9: Lição de Casa | E9: Páginas 30 - 41 | F9: 80%
C10: Composição | D10: Ensaio | E10: Trabalho de persuasão | F10: 95%
C11: Matemática 1 | D11: Lição de Casa | E11: Páginas 21 e 26 | F11: 80%
C12: Matemática 2 | D12: Lição de Casa | E12: Páginas 15 e 18 | F12: 85%
C13: Matemática 1 | D13: Lição de Casa | E13: Páginas 34 - 36 | F13: 80%
C14: Matemática 2 | D14: Teste | F14: 95%

Sheet Seu Desempenho
B1: Seu Desempenho
C3: Totais
C4: ="Horas: "&SUM(tblAulas[Horas de Crédito]) -> Horas: 24 | D4: =AVERAGE(D7:D31) -> 81% | E4: =AVERAGE(E7:E31) -> 2.71 | F4: =SUM(F7:F31) -> 2.63 | G4: =IFERROR(HLOOKUP(D4,lstMapeamentoMédia,2),"") -> B-
C6: Classes | D6: % | E6: Média de Notas | F6: Médiag | G6: Letra | H6: Desempenho Geral
C7: =Cálculos!C6 -> Francês Moderno | D7: =Cálculos!AL6 -> 83% | E7: =Cálculos!AM6 -> 3.00 | F7: =IFERROR(E7*Configurações!D9/SUM(tblAulas[Horas de Crédito]),"") -> 0.38 | G7: =Cálculos!AN6 -> B
C8: =Cálculos!C7 -> Física Teórica | D8: =Cálculos!AL7 -> 95% | E8: =Cálculos!AM7 -> 4.00 | F8: =IFERROR(E8*Configurações!D10/SUM(tblAulas[Horas de Crédito]),"") -> 0.50 | G8: =Cálculos!AN7 -> A
C9: =Cálculos!C8 -> Matemática 1 | D9: =Cálculos!AL8 -> 80% | E9: =Cálculos!AM8 -> 2.67 | F9: =IFERROR(E9*Configurações!D11/SUM(tblAulas[Horas de Crédito]),"") -> 0.45 | G9: =Cálculos!AN8 -> B-
C10: =Cálculos!C9 -> Matemática 2 | D10: =Cálculos!AL9 -> 89% | E10: =Cálculos!AM9 -> 3.33 | F10: =IFERROR(E10*Configurações!D12/SUM(tblAulas[Horas de Crédito]),"") -> 0.56 | G10: =Cálculos!AN9 -> B+
C11: =Cálculos!C10 -> Programação Avançada em Java | D11: =Cálculos!AL10 -> 75% | E11: =Cálculos!AM10 -> 2.00 | F11: =IFERROR(E11*Configurações!D13/SUM(tblAulas[Horas de Crédito]),"") -> 0.42 | G11: =Cálculos!AN10 -> C
C12: =Cálculos!C11 -> Espanhol | D12: =Cálculos!AL11 -> 50% | E12: =Cálculos!AM11 -> 0.00 | F12: =IFERROR(E12*Configurações!D14/SUM(tblAulas[Horas de Crédito]),"") -> 0.00 | G12: =Cálculos!AN11 -> F
C13: =Cálculos!C12 -> Composição | D13: =Cálculos!AL12 -> 95% | E13: =Cálculos!AM12 -> 4.00 | F13: =IFERROR(E13*Configurações!D15/SUM(tblAulas[Horas de Crédito]),"") -> 0.33 | G13: =Cálculos!AN12 -> A
C14: =Cálculos!C13 ->  | D14: =Cálculos!AL13 ->  | E14: =Cálculos!AM13 ->  | F14: =IFERROR(E14*Configurações!D16/SUM(tblAulas[Horas de Crédito]),"") ->  | G14: =Cálculos!AN13 -> 
D15: =Cálculos!AL14 ->  | E15: =Cálculos!AM14 ->  | F15: =IFERROR(E15*Configurações!D17/SUM(tblAulas[Horas de Crédito]),"") ->  | G15: =Cálculos!AN14 -> 
C16: =Cálculos!C15 ->  | D16: =Cálculos!AL15 ->  | E16: =Cálculos!AM15 ->  | F16: =IFERROR(E16*Configurações!D18/SUM(tblAulas[Horas de Crédito]),"") ->  | G16: =Cálculos!AN15 -> 
C17: =Cálculos!C16 ->  | D17: =Cálculos!AL16 ->  | E17: =Cálculos!AM16 ->  | F17: =IFERROR(E17*Configurações!D19/SUM(tblAulas[Horas de Crédito]),"") ->  | G17: =Cálculos!AN16 -> 
C18: =Cálculos!C17 ->  | D18: =Cálculos!AL17 ->  | E18: =Cálculos!AM17 ->  | F18: =IFERROR(E18*Configurações!D20/SUM(tblAulas[Horas de Crédito]),"") ->  | G18: =Cálculos!AN17 -> 
C19: =Cálculos!C18 ->  | D19: =Cálculos!AL18 ->  | E19: =Cálculos!AM18 ->  | F19: =IFERROR(E19*Configurações!D21/SUM(tblAulas[Horas de Crédito]),"") ->  | G19: =Cálculos!AN18 -> 
C20: =Cálculos!C19 ->  | D20: =Cálculos!AL19 ->  | E20: =Cálculos!AM19 ->  | F20: =IFERROR(E20*Configurações!D22/SUM(tblAulas[Horas de Crédito]),"") ->  | G20: =Cálculos!AN19 -> 
C21: =Cálculos!C20 ->  | D21: =Cálculos!AL20 ->  | E21: =Cálculos!AM20 ->  | F21: =IFERROR(E21*Configurações!D23/SUM(tblAulas[Horas de Crédito]),"") ->  | G21: =Cálculos!AN20 -> 
C22: =Cálculos!C21 ->  | D22: =Cálculos!AL21 ->  | E22: =Cálculos!AM21 ->  | F22: =IFERROR(E22*Configurações!D24/SUM(tblAulas[Horas de Crédito]),"") ->  | G22: =Cálculos!AN21 -> 
C23: =Cálculos!C22 ->  | D23: =Cálculos!AL22 ->  | E23: =Cálculos!AM22 ->  | F23: =IFERROR(E23*Configurações!D25/SUM(tblAulas[Horas de Crédito]),"") ->  | G23: =Cálculos!AN22 -> 
C24: =Cálculos!C23 ->  | D24: =Cálculos!AL23 ->  | E24: =Cálculos!AM23 ->  | F24: =IFERROR(E24*Configurações!D26/SUM(tblAulas[Horas de Crédito]),"") ->  | G24: =Cálculos!AN23 -> 
C25: =Cálculos!C24 ->  | D25: =Cálculos!AL24 ->  | E25: =Cálculos!AM24 ->  | F25: =IFERROR(E25*Configurações!D27/SUM(tblAulas[Horas de Crédito]),"") ->  | G25: =Cálculos!AN24 -> 
C26: =Cálculos!C25 ->  | D26: =Cálculos!AL25 ->  | E26: =Cálculos!AM25 ->  | F26: =IFERROR(E26*Configurações!D28/SUM(tblAulas[Horas de Crédito]),"") ->  | G26: =Cálculos!AN25 -> 
C27: =Cálculos!C26 ->  | D27: =Cálculos!AL26 ->  | E27: =Cálculos!AM26 ->  | F27: =IFERROR(E27*Configurações!D29/SUM(tblAulas[Horas de Crédito]),"") ->  | G27: =Cálculos!AN26 -> 
C28: =Cálculos!C27 ->  | D28: =Cálculos!AL27 ->  | E28: =Cálculos!AM27 ->  | F28: =IFERROR(E28*Configurações!D30/SUM(tblAulas[Horas de Crédito]),"") ->  | G28: =Cálculos!AN27 -> 
C29: =Cálculos!C28 ->  | D29: =Cálculos!AL28 ->  | E29: =Cálculos!AM28 ->  | F29: =IFERROR(E29*Configurações!D31/SUM(tblAulas[Horas de Crédito]),"") ->  | G29: =Cálculos!AN28 -> 
C30: =Cálculos!C29 ->  | D30: =Cálculos!AL29 ->  | E30: =Cálculos!AM29 ->  | F30: =IFERROR(E30*Configurações!D32/SUM(tblAulas[Horas de Crédito]),"") ->  | G30: =Cálculos!AN29 -> 
C31: =Cálculos!C30 ->  | D31: =Cálculos!AL30 ->  | E31: =Cálculos!AM30 ->  | F31: =IFERROR(E31*Configurações!D33/SUM(tblAulas[Horas de Crédito]),"") ->  | G31: =Cálculos!AN30 -> 

Sheet Configurações
B1: Configurações
C2: Mapeamento de pontuações e médias
C3: Porcentagem | D3: 0% | E3: 60% | F3: 63% | G3: 67% | H3: 70% | I3: 73% | J3: 77% | K3: 80% | L3: 83% | M3: 87% | N3: 90% | O3: 93% | P3: 97%
C4: Nota de Letra | D4: F | E4: D- | F4: D | G4: D+ | H4: C- | I4: C | J4: C+ | K4: B- | L4: B | M4: B+ | N4: A- | O4: A | P4: A+
C5: Média de Notas | D5: 0 | E5: 0.67 | F5: 1 | G5: 1.33 | H5: 1.67 | I5: 2 | J5: 2.33 | K5: 2.67 | L5: 3 | M5: 3.33 | N5: 3.67 | O5: 4 | P5: 4
C7: Pontuações ponderadas de até 25 classes
C8: Classes que você está frequentando | D8: Horas de Crédito | E8: Lição de Casa | F8: Ensaio | G8: Teste | H8: Projeto | I8: Metade do semestre | J8: Exame Final | K8: Outros | L8: Total %
C9: Francês Moderno | D9: 3.0 | E9: 10% | F9: 15% | G9: 15% | H9: 10% | I9: 20% | J9: 30% | L9: =SUM(tblAulas[[#This Row],[Lição de Casa]:[Outros]]) -> 100%
C10: Física Teórica | D10: 3.0 | E10: 15% | F10: 15% | G10: 10% | H10: 10% | I10: 15% | J10: 30% | K10: 5% | L10: =SUM(tblAulas[[#This Row],[Lição de Casa]:[Outros]]) -> 100%
C11: Matemática 1 | D11: 4.0 | E11: 10% | F11: 15% | G11: 15% | H11: 10% | I11: 20% | J11: 30% | L11: =SUM(tblAulas[[#This Row],[Lição de Casa]:[Outros]]) -> 100%
C12: Matemática 2 | D12: 4.0 | E12: 15% | F12: 15% | G12: 10% | H12: 10% | I12: 15% | J12: 30% | K12: 5% | L12: =SUM(tblAulas[[#This Row],[Lição de Casa]:[Outros]]) -> 100%
C13: Programação Avançada em Java | D13: 5.0 | E13: 15% | F13: 15% | G13: 10% | H13: 10% | I13: 20% | J13: 30% | L13: =SUM(tblAulas[[#This Row],[Lição de Casa]:[Outros]]) -> 100%
C14: Espanhol | D14: 3.0 | E14: 10% | F14: 15% | G14: 17% | H14: 13% | I14: 20% | J14: 20% | K14: 5% | L14: =SUM(tblAulas[[#This Row],[Lição de Casa]:[Outros]]) -> 100%
C15: Composição | D15: 2.0 | E15: 15% | F15: 15% | G15: 12% | H15: 15% | I15: 15% | J15: 25% | K15: 3% | L15: =SUM(tblAulas[[#This Row],[Lição de Casa]:[Outros]]) -> 100%

Sheet Cálculos (hidden)
B1: Cálculos
C2: Esta planilha fornece cálculos para suas notas e médias, e deve permanecer oculta. Qualquer alteração nesta planilha pode resultar em erros.
C4: Lista de Classes Atual | D4: Pontuações (de 1) | AC4: Cálculo de Nota
C5: Classe | D5: 1 | E5: 2 | F5: 3 | G5: 4 | H5: 5 | I5: 6 | J5: 7 | K5: 8 | L5: 9 | M5: 10 | N5: 11 | O5: 12 | P5: 13 | Q5: 14 | R5: 15 | S5: 16 | T5: 17 | U5: 18 | V5: 19 | W5: 20 | X5: 21 | Y5: 22 | Z5: 23 | AA5: 24 | AB5: 25 | AC5: =tblAulas[[#Headers],[Lição de Casa]] -> Lição de Casa | AD5: =tblAulas[[#Headers],[Ensaio]] -> Ensaio | AE5: =tblAulas[[#Headers],[Teste]] -> Teste | AF5: =tblAulas[[#Headers],[Projeto]] -> Projeto | AG5: =tblAulas[[#Headers],[Metade do semestre]] -> Metade do semestre | AH5: =tblAulas[[#Headers],[Exame Final]] -> Exame Final | AI5: =tblAulas[[#Headers],[Outros]] -> Outros | AJ5: Total | AK5: Total de Pontos Possíveis | AL5: % Total | AM5: Ponto de Nota | AN5: Nota de Letra
C6: =IF(Configurações!C9="","",Configurações!C9) -> Francês Moderno | D6: =IFERROR(INDEX(PontuaçõesClassetbl[],MATCH($C6:$C30&D$5:AB$5,Cálculos!$C$33:$C$657,0),4),"") -> 80% | E6: 90% | F6: 80% | AC6: =IFERROR(AVERAGEIFS(PontuaçõesClassetbl[Pontuação],PontuaçõesClassetbl[Classe],Cálculos!$C6,PontuaçõesClassetbl[Tipo],Cálculos!AC$5)*Configurações!E9,"") -> 0.08333333333 | AD6: =IFERROR(AVERAGEIFS(PontuaçõesClassetbl[Pontuação],PontuaçõesClassetbl[Classe],Cálculos!$C6,PontuaçõesClassetbl[Tipo],Cálculos!AD$5)*Configurações!F9,"") ->  | AE6: =IFERROR(AVERAGEIFS(PontuaçõesClassetbl[Pontuação],PontuaçõesClassetbl[Classe],Cálculos!$C6,PontuaçõesClassetbl[Tipo],Cálculos!AE$5)*Configurações!G9,"") ->  | AF6: =IFERROR(AVERAGEIFS(PontuaçõesClassetbl[Pontuação],PontuaçõesClassetbl[Classe],Cálculos!$C6,PontuaçõesClassetbl[Tipo],Cálculos!AF$5)*Configurações!H9,"") ->  | AG6: =IFERROR(AVERAGEIFS(PontuaçõesClassetbl[Pontuação],PontuaçõesClassetbl[Classe],Cálculos!$C6,PontuaçõesClassetbl[Tipo],Cálculos!AG$5)*Configurações!I9,"") ->  | AH6: =IFERROR(AVERAGEIFS(PontuaçõesClassetbl[Pontuação],PontuaçõesClassetbl[Classe],Cálculos!$C6,PontuaçõesClassetbl[Tipo],Cálculos!AH$5)*Configurações!J9,"") ->  | AI6: =IFERROR(AVERAGEIFS(PontuaçõesClassetbl[Pontuação],PontuaçõesClassetbl[Classe],Cálculos!$C6,PontuaçõesClassetbl[Tipo],Cálculos!AI$5)*Configurações!K9,"") ->  | AJ6: =SUM(AC6:AI6) -> 0.08333333333 | AK6: =SUMIFS(Configurações!E9:K9,Cálculos!AC6:AI6,">0") -> 0.1 | AL6: =IFERROR(AJ6/AK6,"") -> 83% | AM6: =IFERROR(HLOOKUP(AL6,lstMapeamentoMédia,3),"") -> 3 | AN6: =IFERROR(HLOOKUP(AL6,lstMapeamentoMédia,2),"") -> B
C7: =IF(Configurações!C10="","",Configurações!C10) -> Física Teórica | D7: 95% | AC7: =IFERROR(AVERAGEIFS(PontuaçõesClassetbl[Pontuação],PontuaçõesClassetbl[Classe],Cálculos!$C7,PontuaçõesClassetbl[Tipo],Cálculos!AC$5)*Configurações!E10,"") -> 0.1425 | AD7: =IFERROR(AVERAGEIFS(PontuaçõesClassetbl[Pontuação],PontuaçõesClassetbl[Classe],Cálculos!$C7,PontuaçõesClassetbl[Tipo],Cálculos!AD$5)*Configurações!F10,"") ->  | AE7: =IFERROR(AVERAGEIFS(PontuaçõesClassetbl[Pontuação],PontuaçõesClassetbl[Classe],Cálculos!$C7,PontuaçõesClassetbl[Tipo],Cálculos!AE$5)*Configurações!G10,"") ->  | AF7: =IFERROR(AVERAGEIFS(PontuaçõesClassetbl[Pontuação],PontuaçõesClassetbl[Classe],Cálculos!$C7,PontuaçõesClassetbl[Tipo],Cálculos!AF$5)*Configurações!H10,"") ->  | AG7: =IFERROR(AVERAGEIFS(PontuaçõesClassetbl[Pontuação],PontuaçõesClassetbl[Classe],Cálculos!$C7,PontuaçõesClassetbl[Tipo],Cálculos!AG$5)*Configurações!I10,"") ->  | AH7: =IFERROR(AVERAGEIFS(PontuaçõesClassetbl[Pontuação],PontuaçõesClassetbl[Classe],Cálculos!$C7,PontuaçõesClassetbl[Tipo],Cálculos!AH$5)*Configurações!J10,"") ->  | AI7: =IFERROR(AVERAGEIFS(PontuaçõesClassetbl[Pontuação],PontuaçõesClassetbl[Classe],Cálculos!$C7,PontuaçõesClassetbl[Tipo],Cálculos!AI$5)*Configurações!K10,"") ->  | AJ7: =SUM(AC7:AI7) -> 0.1425 | AK7: =SUMIFS(Configurações!E10:K10,Cálculos!AC7:AI7,">0") -> 0.15 | AL7: =IFERROR(AJ7/AK7,"") -> 95% | AM7: 4 | AN7: A
C8: =IF(Configurações!C11="","",Configurações!C11) -> Matemática 1 | D8: 80% | E8: 80% | AC8: =IFERROR(AVERAGEIFS(PontuaçõesClassetbl[Pontuação],PontuaçõesClassetbl[Classe],Cálculos!$C8,PontuaçõesClassetbl[Tipo],Cálculos!AC$5)*Configurações!E11,"") -> 0.08 | AD8: =IFERROR(AVERAGEIFS(PontuaçõesClassetbl[Pontuação],PontuaçõesClassetbl[Classe],Cálculos!$C8,PontuaçõesClassetbl[Tipo],Cálculos!AD$5)*Configurações!F11,"") ->  | AE8: =IFERROR(AVERAGEIFS(PontuaçõesClassetbl[Pontuação],PontuaçõesClassetbl[Classe],Cálculos!$C8,PontuaçõesClassetbl[Tipo],Cálculos!AE$5)*Configurações!G11,"") ->  | AF8: =IFERROR(AVERAGEIFS(PontuaçõesClassetbl[Pontuação],PontuaçõesClassetbl[Classe],Cálculos!$C8,PontuaçõesClassetbl[Tipo],Cálculos!AF$5)*Configurações!H11,"") ->  | AG8: =IFERROR(AVERAGEIFS(PontuaçõesClassetbl[Pontuação],PontuaçõesClassetbl[Classe],Cálculos!$C8,PontuaçõesClassetbl[Tipo],Cálculos!AG$5)*Configurações!I11,"") ->  | AH8: =IFERROR(AVERAGEIFS(PontuaçõesClassetbl[Pontuação],PontuaçõesClassetbl[Classe],Cálculos!$C8,PontuaçõesClassetbl[Tipo],Cálculos!AH$5)*Configurações!J11,"") ->  | AI8: =IFERROR(AVERAGEIFS(PontuaçõesClassetbl[Pontuação],PontuaçõesClassetbl[Classe],Cálculos!$C8,PontuaçõesClassetbl[Tipo],Cálculos!AI$5)*Configurações!K11,"") ->  | AJ8: 0.08 | AK8: =SUMIFS(Configurações!E11:K11,Cálculos!AC8:AI8,">0") -> 0.1 | AL8: 80% | AM8: 2.67 | AN8: B-
C9: =IF(Configurações!C12="","",Configurações!C12) -> Matemática 2 | D9: 85% | E9: 95% | AC9: =IFERROR(AVERAGEIFS(PontuaçõesClassetbl[Pontuação],PontuaçõesClassetbl[Classe],Cálculos!$C9,PontuaçõesClassetbl[Tipo],Cálculos!AC$5)*Configurações!E12,"") -> 0.1275 | AD9: =IFERROR(AVERAGEIFS(PontuaçõesClassetbl[Pontuação],PontuaçõesClassetbl[Classe],Cálculos!$C9,PontuaçõesClassetbl[Tipo],Cálculos!AD$5)*Configurações!F12,"") ->  | AE9: =IFERROR(AVERAGEIFS(PontuaçõesClassetbl[Pontuação],PontuaçõesClassetbl[Classe],Cálculos!$C9,PontuaçõesClassetbl[Tipo],Cálculos!AE$5)*Configurações!G12,"") -> 0.095 | AF9: =IFERROR(AVERAGEIFS(PontuaçõesClassetbl[Pontuação],PontuaçõesClassetbl[Classe],Cálculos!$C9,PontuaçõesClassetbl[Tipo],Cálculos!AF$5)*Configurações!H12,"") ->  | AG9: =IFERROR(AVERAGEIFS(PontuaçõesClassetbl[Pontuação],PontuaçõesClassetbl[Classe],Cálculos!$C9,PontuaçõesClassetbl[Tipo],Cálculos!AG$5)*Configurações!I12,"") ->  | AH9: =IFERROR(AVERAGEIFS(PontuaçõesClassetbl[Pontuação],PontuaçõesClassetbl[Classe],Cálculos!$C9,PontuaçõesClassetbl[Tipo],Cálculos!AH$5)*Configurações!J12,"") ->  | AI9: =IFERROR(AVERAGEIFS(PontuaçõesClassetbl[Pontuação],PontuaçõesClassetbl[Classe],Cálculos!$C9,PontuaçõesClassetbl[Tipo],Cálculos!AI$5)*Configurações!K12,"") ->  | AJ9: 0.2225 | AK9: =SUMIFS(Configurações!E12:K12,Cálculos!AC9:AI9,">0") -> 0.25 | AL9: 89% | AM9: 3.33 | AN9: B+
C10: =IF(Configurações!C13="","",Configurações!C13) -> Programação Avançada em Java | D10: 75% | AC10: =IFERROR(AVERAGEIFS(PontuaçõesClassetbl[Pontuação],PontuaçõesClassetbl[Classe],Cálculos!$C10,PontuaçõesClassetbl[Tipo],Cálculos!AC$5)*Configurações!E13,"") ->  | AD10: =IFERROR(AVERAGEIFS(PontuaçõesClassetbl[Pontuação],PontuaçõesClassetbl[Classe],Cálculos!$C10,PontuaçõesClassetbl[Tipo],Cálculos!AD$5)*Configurações!F13,"") ->  | AE10: =IFERROR(AVERAGEIFS(PontuaçõesClassetbl[Pontuação],PontuaçõesClassetbl[Classe],Cálculos!$C10,PontuaçõesClassetbl[Tipo],Cálculos!AE$5)*Configurações!G13,"") ->  | AF10: =IFERROR(AVERAGEIFS(PontuaçõesClassetbl[Pontuação],PontuaçõesClassetbl[Classe],Cálculos!$C10,PontuaçõesClassetbl[Tipo],Cálculos!AF$5)*Configurações!H13,"") ->  | AG10: =IFERROR(AVERAGEIFS(PontuaçõesClassetbl[Pontuação],PontuaçõesClassetbl[Classe],Cálculos!$C10,PontuaçõesClassetbl[Tipo],Cálculos!AG$5)*Configurações!I13,"") -> 0.15 | AH10: =IFERROR(AVERAGEIFS(PontuaçõesClassetbl[Pontuação],PontuaçõesClassetbl[Classe],Cálculos!$C10,PontuaçõesClassetbl[Tipo],Cálculos!AH$5)*Configurações!J13,"") ->  | AI10: =IFERROR(AVERAGEIFS(PontuaçõesClassetbl[Pontuação],PontuaçõesClassetbl[Classe],Cálculos!$C10,PontuaçõesClassetbl[Tipo],Cálculos!AI$5)*Configurações!K13,"") ->  | AJ10: 0.15 | AK10: =SUMIFS(Configurações!E13:K13,Cálculos!AC10:AI10,">0") -> 0.2 | AL10: 75% | AM10: 2 | AN10: C
C11: =IF(Configurações!C14="","",Configurações!C14) -> Espanhol | D11: 50% | AC11: =IFERROR(AVERAGEIFS(PontuaçõesClassetbl[Pontuação],PontuaçõesClassetbl[Classe],Cálculos!$C11,PontuaçõesClassetbl[Tipo],Cálculos!AC$5)*Configurações!E14,"") -> 0.05 | AD11: =IFERROR(AVERAGEIFS(PontuaçõesClassetbl[Pontuação],PontuaçõesClassetbl[Classe],Cálculos!$C11,PontuaçõesClassetbl[Tipo],Cálculos!AD$5)*Configurações!F14,"") ->  | AE11: =IFERROR(AVERAGEIFS(PontuaçõesClassetbl[Pontuação],PontuaçõesClassetbl[Classe],Cálculos!$C11,PontuaçõesClassetbl[Tipo],Cálculos!AE$5)*Configurações!G14,"") ->  | AF11: =IFERROR(AVERAGEIFS(PontuaçõesClassetbl[Pontuação],PontuaçõesClassetbl[Classe],Cálculos!$C11,PontuaçõesClassetbl[Tipo],Cálculos!AF$5)*Configurações!H14,"") ->  | AG11: =IFERROR(AVERAGEIFS(PontuaçõesClassetbl[Pontuação],PontuaçõesClassetbl[Classe],Cálculos!$C11,PontuaçõesClassetbl[Tipo],Cálculos!AG$5)*Configurações!I14,"") ->  | AH11: =IFERROR(AVERAGEIFS(PontuaçõesClassetbl[Pontuação],PontuaçõesClassetbl[Classe],Cálculos!$C11,PontuaçõesClassetbl[Tipo],Cálculos!AH$5)*Configurações!J14,"") ->  | AI11: =IFERROR(AVERAGEIFS(PontuaçõesClassetbl[Pontuação],PontuaçõesClassetbl[Classe],Cálculos!$C11,PontuaçõesClassetbl[Tipo],Cálculos!AI$5)*Configurações!K14,"") ->  | AJ11: 0.05 | AK11: =SUMIFS(Configurações!E14:K14,Cálculos!AC11:AI11,">0") -> 0.1 | AL11: 50% | AM11: 0 | AN11: F
C12: =IF(Configurações!C15="","",Configurações!C15) -> Composição | D12: 95% | AC12: =IFERROR(AVERAGEIFS(PontuaçõesClassetbl[Pontuação],PontuaçõesClassetbl[Classe],Cálculos!$C12,PontuaçõesClassetbl[Tipo],Cálculos!AC$5)*Configurações!E15,"") ->  | AD12: =IFERROR(AVERAGEIFS(PontuaçõesClassetbl[Pontuação],PontuaçõesClassetbl[Classe],Cálculos!$C12,PontuaçõesClassetbl[Tipo],Cálculos!AD$5)*Configurações!F15,"") -> 0.1425 | AE12: =IFERROR(AVERAGEIFS(PontuaçõesClassetbl[Pontuação],PontuaçõesClassetbl[Classe],Cálculos!$C12,PontuaçõesClassetbl[Tipo],Cálculos!AE$5)*Configurações!G15,"") ->  | AF12: =IFERROR(AVERAGEIFS(PontuaçõesClassetbl[Pontuação],PontuaçõesClassetbl[Classe],Cálculos!$C12,PontuaçõesClassetbl[Tipo],Cálculos!AF$5)*Configurações!H15,"") ->  | AG12: =IFERROR(AVERAGEIFS(PontuaçõesClassetbl[Pontuação],PontuaçõesClassetbl[Classe],Cálculos!$C12,PontuaçõesClassetbl[Tipo],Cálculos!AG$5)*Configurações!I15,"") ->  | AH12: =IFERROR(AVERAGEIFS(PontuaçõesClassetbl[Pontuação],PontuaçõesClassetbl[Classe],Cálculos!$C12,PontuaçõesClassetbl[Tipo],Cálculos!AH$5)*Configurações!J15,"") ->  | AI12: =IFERROR(AVERAGEIFS(PontuaçõesClassetbl[Pontuação],PontuaçõesClassetbl[Classe],Cálculos!$C12,PontuaçõesClassetbl[Tipo],Cálculos!AI$5)*Configurações!K15,"") ->  | AJ12: 0.1425 | AK12: =SUMIFS(Configurações!E15:K15,Cálculos!AC12:AI12,">0") -> 0.15 | AL12: 95% | AM12: 4 | AN12: A
C13: =IF(Configurações!C16="","",Configurações!C16) ->  | AC13: =IFERROR(AVERAGEIFS(PontuaçõesClassetbl[Pontuação],PontuaçõesClassetbl[Classe],Cálculos!$C13,PontuaçõesClassetbl[Tipo],Cálculos!AC$5)*Configurações!E16,"") ->  | AD13: =IFERROR(AVERAGEIFS(PontuaçõesClassetbl[Pontuação],PontuaçõesClassetbl[Classe],Cálculos!$C13,PontuaçõesClassetbl[Tipo],Cálculos!AD$5)*Configurações!F16,"") ->  | AE13: =IFERROR(AVERAGEIFS(PontuaçõesClassetbl[Pontuação],PontuaçõesClassetbl[Classe],Cálculos!$C13,PontuaçõesClassetbl[Tipo],Cálculos!AE$5)*Configurações!G16,"") ->  | AF13: =IFERROR(AVERAGEIFS(PontuaçõesClassetbl[Pontuação],PontuaçõesClassetbl[Classe],Cálculos!$C13,PontuaçõesClassetbl[Tipo],Cálculos!AF$5)*Configurações!H16,"") ->  | AG13: =IFERROR(AVERAGEIFS(PontuaçõesClassetbl[Pontuação],PontuaçõesClassetbl[Classe],Cálculos!$C13,PontuaçõesClassetbl[Tipo],Cálculos!AG$5)*Configurações!I16,"") ->  | AH13: =IFERROR(AVERAGEIFS(PontuaçõesClassetbl[Pontuação],PontuaçõesClassetbl[Classe],Cálculos!$C13,PontuaçõesClassetbl[Tipo],Cálculos!AH$5)*Configurações!J16,"") ->  | AI13: =IFERROR(AVERAGEIFS(PontuaçõesClassetbl[Pontuação],PontuaçõesClassetbl[Classe],Cálculos!$C13,PontuaçõesClassetbl[Tipo],Cálculos!AI$5)*Configurações!K16,"") ->  | AJ13: =SUM(AC13:AI13) -> 0 | AK13: =SUMIFS(Configurações!E16:K16,Cálculos!AC13:AI13,">0") -> 0 | AL13: =IFERROR(AJ13/AK13,"") -> 
AC14: =IFERROR(AVERAGEIFS(PontuaçõesClassetbl[Pontuação],PontuaçõesClassetbl[Classe],Cálculos!$C14,PontuaçõesClassetbl[Tipo],Cálculos!AC$5)*Configurações!E17,"") ->  | AD14: =IFERROR(AVERAGEIFS(PontuaçõesClassetbl[Pontuação],PontuaçõesClassetbl[Classe],Cálculos!$C14,PontuaçõesClassetbl[Tipo],Cálculos!AD$5)*Configurações!F17,"") ->  | AE14: =IFERROR(AVERAGEIFS(PontuaçõesClassetbl[Pontuação],PontuaçõesClassetbl[Classe],Cálculos!$C14,PontuaçõesClassetbl[Tipo],Cálculos!AE$5)*Configurações!G17,"") ->  | AF14: =IFERROR(AVERAGEIFS(PontuaçõesClassetbl[Pontuação],PontuaçõesClassetbl[Classe],Cálculos!$C14,PontuaçõesClassetbl[Tipo],Cálculos!AF$5)*Configurações!H17,"") ->  | AG14: =IFERROR(AVERAGEIFS(PontuaçõesClassetbl[Pontuação],PontuaçõesClassetbl[Classe],Cálculos!$C14,PontuaçõesClassetbl[Tipo],Cálculos!AG$5)*Configurações!I17,"") ->  | AH14: =IFERROR(AVERAGEIFS(PontuaçõesClassetbl[Pontuação],PontuaçõesClassetbl[Classe],Cálculos!$C14,PontuaçõesClassetbl[Tipo],Cálculos!AH$5)*Configurações!J17,"") ->  | AI14: =IFERROR(AVERAGEIFS(PontuaçõesClassetbl[Pontuação],PontuaçõesClassetbl[Classe],Cálculos!$C14,PontuaçõesClassetbl[Tipo],Cálculos!AI$5)*Configurações!K17,"") ->  | AJ14: 0 | AK14: =SUMIFS(Configurações!E17:K17,Cálculos!AC14:AI14,">0") -> 0
C15: =IF(Configurações!C18="","",Configurações!C18) ->  | AC15: =IFERROR(AVERAGEIFS(PontuaçõesClassetbl[Pontuação],PontuaçõesClassetbl[Classe],Cálculos!$C15,PontuaçõesClassetbl[Tipo],Cálculos!AC$5)*Configurações!E18,"") ->  | AD15: =IFERROR(AVERAGEIFS(PontuaçõesClassetbl[Pontuação],PontuaçõesClassetbl[Classe],Cálculos!$C15,PontuaçõesClassetbl[Tipo],Cálculos!AD$5)*Configurações!F18,"") ->  | AE15: =IFERROR(AVERAGEIFS(PontuaçõesClassetbl[Pontuação],PontuaçõesClassetbl[Classe],Cálculos!$C15,PontuaçõesClassetbl[Tipo],Cálculos!AE$5)*Configurações!G18,"") ->  | AF15: =IFERROR(AVERAGEIFS(PontuaçõesClassetbl[Pontuação],PontuaçõesClassetbl[Classe],Cálculos!$C15,PontuaçõesClassetbl[Tipo],Cálculos!AF$5)*Configurações!H18,"") ->  | AG15: =IFERROR(AVERAGEIFS(PontuaçõesClassetbl[Pontuação],PontuaçõesClassetbl[Classe],Cálculos!$C15,PontuaçõesClassetbl[Tipo],Cálculos!AG$5)*Configurações!I18,"") ->  | AH15: =IFERROR(AVERAGEIFS(PontuaçõesClassetbl[Pontuação],PontuaçõesClassetbl[Classe],Cálculos!$C15,PontuaçõesClassetbl[Tipo],Cálculos!AH$5)*Configurações!J18,"") ->  | AI15: =IFERROR(AVERAGEIFS(PontuaçõesClassetbl[Pontuação],PontuaçõesClassetbl[Classe],Cálculos!$C15,PontuaçõesClassetbl[Tipo],Cálculos!AI$5)*Configurações!K18,"") ->  | AJ15: 0 | AK15: =SUMIFS(Configurações!E18:K18,Cálculos!AC15:AI15,">0") -> 0
C16: =IF(Configurações!C19="","",Configurações!C19) ->  | AC16: =IFERROR(AVERAGEIFS(PontuaçõesClassetbl[Pontuação],PontuaçõesClassetbl[Classe],Cálculos!$C16,PontuaçõesClassetbl[Tipo],Cálculos!AC$5)*Configurações!E19,"") ->  | AD16: =IFERROR(AVERAGEIFS(PontuaçõesClassetbl[Pontuação],PontuaçõesClassetbl[Classe],Cálculos!$C16,PontuaçõesClassetbl[Tipo],Cálculos!AD$5)*Configurações!F19,"") ->  | AE16: =IFERROR(AVERAGEIFS(PontuaçõesClassetbl[Pontuação],PontuaçõesClassetbl[Classe],Cálculos!$C16,PontuaçõesClassetbl[Tipo],Cálculos!AE$5)*Configurações!G19,"") ->  | AF16: =IFERROR(AVERAGEIFS(PontuaçõesClassetbl[Pontuação],PontuaçõesClassetbl[Classe],Cálculos!$C16,PontuaçõesClassetbl[Tipo],Cálculos!AF$5)*Configurações!H19,"") ->  | AG16: =IFERROR(AVERAGEIFS(PontuaçõesClassetbl[Pontuação],PontuaçõesClassetbl[Classe],Cálculos!$C16,PontuaçõesClassetbl[Tipo],Cálculos!AG$5)*Configurações!I19,"") ->  | AH16: =IFERROR(AVERAGEIFS(PontuaçõesClassetbl[Pontuação],PontuaçõesClassetbl[Classe],Cálculos!$C16,PontuaçõesClassetbl[Tipo],Cálculos!AH$5)*Configurações!J19,"") ->  | AI16: =IFERROR(AVERAGEIFS(PontuaçõesClassetbl[Pontuação],PontuaçõesClassetbl[Classe],Cálculos!$C16,PontuaçõesClassetbl[Tipo],Cálculos!AI$5)*Configurações!K19,"") ->  | AJ16: 0 | AK16: =SUMIFS(Configurações!E19:K19,Cálculos!AC16:AI16,">0") -> 0
C17: =IF(Configurações!C20="","",Configurações!C20) ->  | AC17: =IFERROR(AVERAGEIFS(PontuaçõesClassetbl[Pontuação],PontuaçõesClassetbl[Classe],Cálculos!$C17,PontuaçõesClassetbl[Tipo],Cálculos!AC$5)*Configurações!E20,"") ->  | AD17: =IFERROR(AVERAGEIFS(PontuaçõesClassetbl[Pontuação],PontuaçõesClassetbl[Classe],Cálculos!$C17,PontuaçõesClassetbl[Tipo],Cálculos!AD$5)*Configurações!F20,"") ->  | AE17: =IFERROR(AVERAGEIFS(PontuaçõesClassetbl[Pontuação],PontuaçõesClassetbl[Classe],Cálculos!$C17,PontuaçõesClassetbl[Tipo],Cálculos!AE$5)*Configurações!G20,"") ->  | AF17: =IFERROR(AVERAGEIFS(PontuaçõesClassetbl[Pontuação],PontuaçõesClassetbl[Classe],Cálculos!$C17,PontuaçõesClassetbl[Tipo],Cálculos!AF$5)*Configurações!H20,"") ->  | AG17: =IFERROR(AVERAGEIFS(PontuaçõesClassetbl[Pontuação],PontuaçõesClassetbl[Classe],Cálculos!$C17,PontuaçõesClassetbl[Tipo],Cálculos!AG$5)*Configurações!I20,"") ->  | AH17: =IFERROR(AVERAGEIFS(PontuaçõesClassetbl[Pontuação],PontuaçõesClassetbl[Classe],Cálculos!$C17,PontuaçõesClassetbl[Tipo],Cálculos!AH$5)*Configurações!J20,"") ->  | AI17: =IFERROR(AVERAGEIFS(PontuaçõesClassetbl[Pontuação],PontuaçõesClassetbl[Classe],Cálculos!$C17,PontuaçõesClassetbl[Tipo],Cálculos!AI$5)*Configurações!K20,"") ->  | AJ17: 0 | AK17: =SUMIFS(Configurações!E20:K20,Cálculos!AC17:AI17,">0") -> 0
C18: =IF(Configurações!C21="","",Configurações!C21) ->  | AC18: =IFERROR(AVERAGEIFS(PontuaçõesClassetbl[Pontuação],PontuaçõesClassetbl[Classe],Cálculos!$C18,PontuaçõesClassetbl[Tipo],Cálculos!AC$5)*Configurações!E21,"") ->  | AD18: =IFERROR(AVERAGEIFS(PontuaçõesClassetbl[Pontuação],PontuaçõesClassetbl[Classe],Cálculos!$C18,PontuaçõesClassetbl[Tipo],Cálculos!AD$5)*Configurações!F21,"") ->  | AE18: =IFERROR(AVERAGEIFS(PontuaçõesClassetbl[Pontuação],PontuaçõesClassetbl[Classe],Cálculos!$C18,PontuaçõesClassetbl[Tipo],Cálculos!AE$5)*Configurações!G21,"") ->  | AF18: =IFERROR(AVERAGEIFS(PontuaçõesClassetbl[Pontuação],PontuaçõesClassetbl[Classe],Cálculos!$C18,PontuaçõesClassetbl[Tipo],Cálculos!AF$5)*Configurações!H21,"") ->  | AG18: =IFERROR(AVERAGEIFS(PontuaçõesClassetbl[Pontuação],PontuaçõesClassetbl[Classe],Cálculos!$C18,PontuaçõesClassetbl[Tipo],Cálculos!AG$5)*Configurações!I21,"") ->  | AH18: =IFERROR(AVERAGEIFS(PontuaçõesClassetbl[Pontuação],PontuaçõesClassetbl[Classe],Cálculos!$C18,PontuaçõesClassetbl[Tipo],Cálculos!AH$5)*Configurações!J21,"") ->  | AI18: =IFERROR(AVERAGEIFS(PontuaçõesClassetbl[Pontuação],PontuaçõesClassetbl[Classe],Cálculos!$C18,PontuaçõesClassetbl[Tipo],Cálculos!AI$5)*Configurações!K21,"") ->  | AJ18: 0 | AK18: =SUMIFS(Configurações!E21:K21,Cálculos!AC18:AI18,">0") -> 0
C19: =IF(Configurações!C22="","",Configurações!C22) ->  | AC19: =IFERROR(AVERAGEIFS(PontuaçõesClassetbl[Pontuação],PontuaçõesClassetbl[Classe],Cálculos!$C19,PontuaçõesClassetbl[Tipo],Cálculos!AC$5)*Configurações!E22,"") ->  | AD19: =IFERROR(AVERAGEIFS(PontuaçõesClassetbl[Pontuação],PontuaçõesClassetbl[Classe],Cálculos!$C19,PontuaçõesClassetbl[Tipo],Cálculos!AD$5)*Configurações!F22,"") ->  | AE19: =IFERROR(AVERAGEIFS(PontuaçõesClassetbl[Pontuação],PontuaçõesClassetbl[Classe],Cálculos!$C19,PontuaçõesClassetbl[Tipo],Cálculos!AE$5)*Configurações!G22,"") ->  | AF19: =IFERROR(AVERAGEIFS(PontuaçõesClassetbl[Pontuação],PontuaçõesClassetbl[Classe],Cálculos!$C19,PontuaçõesClassetbl[Tipo],Cálculos!AF$5)*Configurações!H22,"") ->  | AG19: =IFERROR(AVERAGEIFS(PontuaçõesClassetbl[Pontuação],PontuaçõesClassetbl[Classe],Cálculos!$C19,PontuaçõesClassetbl[Tipo],Cálculos!AG$5)*Configurações!I22,"") ->  | AH19: =IFERROR(AVERAGEIFS(PontuaçõesClassetbl[Pontuação],PontuaçõesClassetbl[Classe],Cálculos!$C19,PontuaçõesClassetbl[Tipo],Cálculos!AH$5)*Configurações!J22,"") ->  | AI19: =IFERROR(AVERAGEIFS(PontuaçõesClassetbl[Pontuação],PontuaçõesClassetbl[Classe],Cálculos!$C19,PontuaçõesClassetbl[Tipo],Cálculos!AI$5)*Configurações!K22,"") ->  | AJ19: 0 | AK19: =SUMIFS(Configurações!E22:K22,Cálculos!AC19:AI19,">0") -> 0
C20: =IF(Configurações!C23="","",Configurações!C23) ->  | AC20: =IFERROR(AVERAGEIFS(PontuaçõesClassetbl[Pontuação],PontuaçõesClassetbl[Classe],Cálculos!$C20,PontuaçõesClassetbl[Tipo],Cálculos!AC$5)*Configurações!E23,"") ->  | AD20: =IFERROR(AVERAGEIFS(PontuaçõesClassetbl[Pontuação],PontuaçõesClassetbl[Classe],Cálculos!$C20,PontuaçõesClassetbl[Tipo],Cálculos!AD$5)*Configurações!F23,"") ->  | AE20: =IFERROR(AVERAGEIFS(PontuaçõesClassetbl[Pontuação],PontuaçõesClassetbl[Classe],Cálculos!$C20,PontuaçõesClassetbl[Tipo],Cálculos!AE$5)*Configurações!G23,"") ->  | AF20: =IFERROR(AVERAGEIFS(PontuaçõesClassetbl[Pontuação],PontuaçõesClassetbl[Classe],Cálculos!$C20,PontuaçõesClassetbl[Tipo],Cálculos!AF$5)*Configurações!H23,"") ->  | AG20: =IFERROR(AVERAGEIFS(PontuaçõesClassetbl[Pontuação],PontuaçõesClassetbl[Classe],Cálculos!$C20,PontuaçõesClassetbl[Tipo],Cálculos!AG$5)*Configurações!I23,"") ->  | AH20: =IFERROR(AVERAGEIFS(PontuaçõesClassetbl[Pontuação],PontuaçõesClassetbl[Classe],Cálculos!$C20,PontuaçõesClassetbl[Tipo],Cálculos!AH$5)*Configurações!J23,"") ->  | AI20: =IFERROR(AVERAGEIFS(PontuaçõesClassetbl[Pontuação],PontuaçõesClassetbl[Classe],Cálculos!$C20,PontuaçõesClassetbl[Tipo],Cálculos!AI$5)*Configurações!K23,"") ->  | AJ20: 0 | AK20: =SUMIFS(Configurações!E23:K23,Cálculos!AC20:AI20,">0") -> 0
C21: =IF(Configurações!C24="","",Configurações!C24) ->  | AC21: =IFERROR(AVERAGEIFS(PontuaçõesClassetbl[Pontuação],PontuaçõesClassetbl[Classe],Cálculos!$C21,PontuaçõesClassetbl[Tipo],Cálculos!AC$5)*Configurações!E24,"") ->  | AD21: =IFERROR(AVERAGEIFS(PontuaçõesClassetbl[Pontuação],PontuaçõesClassetbl[Classe],Cálculos!$C21,PontuaçõesClassetbl[Tipo],Cálculos!AD$5)*Configurações!F24,"") ->  | AE21: =IFERROR(AVERAGEIFS(PontuaçõesClassetbl[Pontuação],PontuaçõesClassetbl[Classe],Cálculos!$C21,PontuaçõesClassetbl[Tipo],Cálculos!AE$5)*Configurações!G24,"") ->  | AF21: =IFERROR(AVERAGEIFS(PontuaçõesClassetbl[Pontuação],PontuaçõesClassetbl[Classe],Cálculos!$C21,PontuaçõesClassetbl[Tipo],Cálculos!AF$5)*Configurações!H24,"") ->  | AG21: =IFERROR(AVERAGEIFS(PontuaçõesClassetbl[Pontuação],PontuaçõesClassetbl[Classe],Cálculos!$C21,PontuaçõesClassetbl[Tipo],Cálculos!AG$5)*Configurações!I24,"") ->  | AH21: =IFERROR(AVERAGEIFS(PontuaçõesClassetbl[Pontuação],PontuaçõesClassetbl[Classe],Cálculos!$C21,PontuaçõesClassetbl[Tipo],Cálculos!AH$5)*Configurações!J24,"") ->  | AI21: =IFERROR(AVERAGEIFS(PontuaçõesClassetbl[Pontuação],PontuaçõesClassetbl[Classe],Cálculos!$C21,PontuaçõesClassetbl[Tipo],Cálculos!AI$5)*Configurações!K24,"") ->  | AJ21: 0 | AK21: =SUMIFS(Configurações!E24:K24,Cálculos!AC21:AI21,">0") -> 0
C22: =IF(Configurações!C25="","",Configurações!C25) ->  | AC22: =IFERROR(AVERAGEIFS(PontuaçõesClassetbl[Pontuação],PontuaçõesClassetbl[Classe],Cálculos!$C22,PontuaçõesClassetbl[Tipo],Cálculos!AC$5)*Configurações!E25,"") ->  | AD22: =IFERROR(AVERAGEIFS(PontuaçõesClassetbl[Pontuação],PontuaçõesClassetbl[Classe],Cálculos!$C22,PontuaçõesClassetbl[Tipo],Cálculos!AD$5)*Configurações!F25,"") ->  | AE22: =IFERROR(AVERAGEIFS(PontuaçõesClassetbl[Pontuação],PontuaçõesClassetbl[Classe],Cálculos!$C22,PontuaçõesClassetbl[Tipo],Cálculos!AE$5)*Configurações!G25,"") ->  | AF22: =IFERROR(AVERAGEIFS(PontuaçõesClassetbl[Pontuação],PontuaçõesClassetbl[Classe],Cálculos!$C22,PontuaçõesClassetbl[Tipo],Cálculos!AF$5)*Configurações!H25,"") ->  | AG22: =IFERROR(AVERAGEIFS(PontuaçõesClassetbl[Pontuação],PontuaçõesClassetbl[Classe],Cálculos!$C22,PontuaçõesClassetbl[Tipo],Cálculos!AG$5)*Configurações!I25,"") ->  | AH22: =IFERROR(AVERAGEIFS(PontuaçõesClassetbl[Pontuação],PontuaçõesClassetbl[Classe],Cálculos!$C22,PontuaçõesClassetbl[Tipo],Cálculos!AH$5)*Configurações!J25,"") ->  | AI22: =IFERROR(AVERAGEIFS(PontuaçõesClassetbl[Pontuação],PontuaçõesClassetbl[Classe],Cálculos!$C22,PontuaçõesClassetbl[Tipo],Cálculos!AI$5)*Configurações!K25,"") ->  | AJ22: 0 | AK22: =SUMIFS(Configurações!E25:K25,Cálculos!AC22:AI22,">0") -> 0
C23: =IF(Configurações!C26="","",Configurações!C26) ->  | AC23: =IFERROR(AVERAGEIFS(PontuaçõesClassetbl[Pontuação],PontuaçõesClassetbl[Classe],Cálculos!$C23,PontuaçõesClassetbl[Tipo],Cálculos!AC$5)*Configurações!E26,"") ->  | AD23: =IFERROR(AVERAGEIFS(PontuaçõesClassetbl[Pontuação],PontuaçõesClassetbl[Classe],Cálculos!$C23,PontuaçõesClassetbl[Tipo],Cálculos!AD$5)*Configurações!F26,"") ->  | AE23: =IFERROR(AVERAGEIFS(PontuaçõesClassetbl[Pontuação],PontuaçõesClassetbl[Classe],Cálculos!$C23,PontuaçõesClassetbl[Tipo],Cálculos!AE$5)*Configurações!G26,"") ->  | AF23: =IFERROR(AVERAGEIFS(PontuaçõesClassetbl[Pontuação],PontuaçõesClassetbl[Classe],Cálculos!$C23,PontuaçõesClassetbl[Tipo],Cálculos!AF$5)*Configurações!H26,"") ->  | AG23: =IFERROR(AVERAGEIFS(PontuaçõesClassetbl[Pontuação],PontuaçõesClassetbl[Classe],Cálculos!$C23,PontuaçõesClassetbl[Tipo],Cálculos!AG$5)*Configurações!I26,"") ->  | AH23: =IFERROR(AVERAGEIFS(PontuaçõesClassetbl[Pontuação],PontuaçõesClassetbl[Classe],Cálculos!$C23,PontuaçõesClassetbl[Tipo],Cálculos!AH$5)*Configurações!J26,"") ->  | AI23: =IFERROR(AVERAGEIFS(PontuaçõesClassetbl[Pontuação],PontuaçõesClassetbl[Classe],Cálculos!$C23,PontuaçõesClassetbl[Tipo],Cálculos!AI$5)*Configurações!K26,"") ->  | AJ23: 0 | AK23: =SUMIFS(Configurações!E26:K26,Cálculos!AC23:AI23,">0") -> 0
C24: =IF(Configurações!C27="","",Configurações!C27) ->  | AC24: =IFERROR(AVERAGEIFS(PontuaçõesClassetbl[Pontuação],PontuaçõesClassetbl[Classe],Cálculos!$C24,PontuaçõesClassetbl[Tipo],Cálculos!AC$5)*Configurações!E27,"") ->  | AD24: =IFERROR(AVERAGEIFS(PontuaçõesClassetbl[Pontuação],PontuaçõesClassetbl[Classe],Cálculos!$C24,PontuaçõesClassetbl[Tipo],Cálculos!AD$5)*Configurações!F27,"") ->  | AE24: =IFERROR(AVERAGEIFS(PontuaçõesClassetbl[Pontuação],PontuaçõesClassetbl[Classe],Cálculos!$C24,PontuaçõesClassetbl[Tipo],Cálculos!AE$5)*Configurações!G27,"") ->  | AF24: =IFERROR(AVERAGEIFS(PontuaçõesClassetbl[Pontuação],PontuaçõesClassetbl[Classe],Cálculos!$C24,PontuaçõesClassetbl[Tipo],Cálculos!AF$5)*Configurações!H27,"") ->  | AG24: =IFERROR(AVERAGEIFS(PontuaçõesClassetbl[Pontuação],PontuaçõesClassetbl[Classe],Cálculos!$C24,PontuaçõesClassetbl[Tipo],Cálculos!AG$5)*Configurações!I27,"") ->  | AH24: =IFERROR(AVERAGEIFS(PontuaçõesClassetbl[Pontuação],PontuaçõesClassetbl[Classe],Cálculos!$C24,PontuaçõesClassetbl[Tipo],Cálculos!AH$5)*Configurações!J27,"") ->  | AI24: =IFERROR(AVERAGEIFS(PontuaçõesClassetbl[Pontuação],PontuaçõesClassetbl[Classe],Cálculos!$C24,PontuaçõesClassetbl[Tipo],Cálculos!AI$5)*Configurações!K27,"") ->  | AJ24: 0 | AK24: =SUMIFS(Configurações!E27:K27,Cálculos!AC24:AI24,">0") -> 0
C25: =IF(Configurações!C28="","",Configurações!C28) ->  | AC25: =IFERROR(AVERAGEIFS(PontuaçõesClassetbl[Pontuação],PontuaçõesClassetbl[Classe],Cálculos!$C25,PontuaçõesClassetbl[Tipo],Cálculos!AC$5)*Configurações!E28,"") ->  | AD25: =IFERROR(AVERAGEIFS(PontuaçõesClassetbl[Pontuação],PontuaçõesClassetbl[Classe],Cálculos!$C25,PontuaçõesClassetbl[Tipo],Cálculos!AD$5)*Configurações!F28,"") ->  | AE25: =IFERROR(AVERAGEIFS(PontuaçõesClassetbl[Pontuação],PontuaçõesClassetbl[Classe],Cálculos!$C25,PontuaçõesClassetbl[Tipo],Cálculos!AE$5)*Configurações!G28,"") ->  | AF25: =IFERROR(AVERAGEIFS(PontuaçõesClassetbl[Pontuação],PontuaçõesClassetbl[Classe],Cálculos!$C25,PontuaçõesClassetbl[Tipo],Cálculos!AF$5)*Configurações!H28,"") ->  | AG25: =IFERROR(AVERAGEIFS(PontuaçõesClassetbl[Pontuação],PontuaçõesClassetbl[Classe],Cálculos!$C25,PontuaçõesClassetbl[Tipo],Cálculos!AG$5)*Configurações!I28,"") ->  | AH25: =IFERROR(AVERAGEIFS(PontuaçõesClassetbl[Pontuação],PontuaçõesClassetbl[Classe],Cálculos!$C25,PontuaçõesClassetbl[Tipo],Cálculos!AH$5)*Configurações!J28,"") ->  | AI25: =IFERROR(AVERAGEIFS(PontuaçõesClassetbl[Pontuação],PontuaçõesClassetbl[Classe],Cálculos!$C25,PontuaçõesClassetbl[Tipo],Cálculos!AI$5)*Configurações!K28,"") ->  | AJ25: 0 | AK25: =SUMIFS(Configurações!E28:K28,Cálculos!AC25:AI25,">0") -> 0
C26: =IF(Configurações!C29="","",Configurações!C29) ->  | AC26: =IFERROR(AVERAGEIFS(PontuaçõesClassetbl[Pontuação],PontuaçõesClassetbl[Classe],Cálculos!$C26,PontuaçõesClassetbl[Tipo],Cálculos!AC$5)*Configurações!E29,"") ->  | AD26: =IFERROR(AVERAGEIFS(PontuaçõesClassetbl[Pontuação],PontuaçõesClassetbl[Classe],Cálculos!$C26,PontuaçõesClassetbl[Tipo],Cálculos!AD$5)*Configurações!F29,"") ->  | AE26: =IFERROR(AVERAGEIFS(PontuaçõesClassetbl[Pontuação],PontuaçõesClassetbl[Classe],Cálculos!$C26,PontuaçõesClassetbl[Tipo],Cálculos!AE$5)*Configurações!G29,"") ->  | AF26: =IFERROR(AVERAGEIFS(PontuaçõesClassetbl[Pontuação],PontuaçõesClassetbl[Classe],Cálculos!$C26,PontuaçõesClassetbl[Tipo],Cálculos!AF$5)*Configurações!H29,"") ->  | AG26: =IFERROR(AVERAGEIFS(PontuaçõesClassetbl[Pontuação],PontuaçõesClassetbl[Classe],Cálculos!$C26,PontuaçõesClassetbl[Tipo],Cálculos!AG$5)*Configurações!I29,"") ->  | AH26: =IFERROR(AVERAGEIFS(PontuaçõesClassetbl[Pontuação],PontuaçõesClassetbl[Classe],Cálculos!$C26,PontuaçõesClassetbl[Tipo],Cálculos!AH$5)*Configurações!J29,"") ->  | AI26: =IFERROR(AVERAGEIFS(PontuaçõesClassetbl[Pontuação],PontuaçõesClassetbl[Classe],Cálculos!$C26,PontuaçõesClassetbl[Tipo],Cálculos!AI$5)*Configurações!K29,"") ->  | AJ26: 0 | AK26: =SUMIFS(Configurações!E29:K29,Cálculos!AC26:AI26,">0") -> 0
C27: =IF(Configurações!C30="","",Configurações!C30) ->  | AC27: =IFERROR(AVERAGEIFS(PontuaçõesClassetbl[Pontuação],PontuaçõesClassetbl[Classe],Cálculos!$C27,PontuaçõesClassetbl[Tipo],Cálculos!AC$5)*Configurações!E30,"") ->  | AD27: =IFERROR(AVERAGEIFS(PontuaçõesClassetbl[Pontuação],PontuaçõesClassetbl[Classe],Cálculos!$C27,PontuaçõesClassetbl[Tipo],Cálculos!AD$5)*Configurações!F30,"") ->  | AE27: =IFERROR(AVERAGEIFS(PontuaçõesClassetbl[Pontuação],PontuaçõesClassetbl[Classe],Cálculos!$C27,PontuaçõesClassetbl[Tipo],Cálculos!AE$5)*Configurações!G30,"") ->  | AF27: =IFERROR(AVERAGEIFS(PontuaçõesClassetbl[Pontuação],PontuaçõesClassetbl[Classe],Cálculos!$C27,PontuaçõesClassetbl[Tipo],Cálculos!AF$5)*Configurações!H30,"") ->  | AG27: =IFERROR(AVERAGEIFS(PontuaçõesClassetbl[Pontuação],PontuaçõesClassetbl[Classe],Cálculos!$C27,PontuaçõesClassetbl[Tipo],Cálculos!AG$5)*Configurações!I30,"") ->  | AH27: =IFERROR(AVERAGEIFS(PontuaçõesClassetbl[Pontuação],PontuaçõesClassetbl[Classe],Cálculos!$C27,PontuaçõesClassetbl[Tipo],Cálculos!AH$5)*Configurações!J30,"") ->  | AI27: =IFERROR(AVERAGEIFS(PontuaçõesClassetbl[Pontuação],PontuaçõesClassetbl[Classe],Cálculos!$C27,PontuaçõesClassetbl[Tipo],Cálculos!AI$5)*Configurações!K30,"") ->  | AJ27: 0 | AK27: =SUMIFS(Configurações!E30:K30,Cálculos!AC27:AI27,">0") -> 0
C28: =IF(Configurações!C31="","",Configurações!C31) ->  | AC28: =IFERROR(AVERAGEIFS(PontuaçõesClassetbl[Pontuação],PontuaçõesClassetbl[Classe],Cálculos!$C28,PontuaçõesClassetbl[Tipo],Cálculos!AC$5)*Configurações!E31,"") ->  | AD28: =IFERROR(AVERAGEIFS(PontuaçõesClassetbl[Pontuação],PontuaçõesClassetbl[Classe],Cálculos!$C28,PontuaçõesClassetbl[Tipo],Cálculos!AD$5)*Configurações!F31,"") ->  | AE28: =IFERROR(AVERAGEIFS(PontuaçõesClassetbl[Pontuação],PontuaçõesClassetbl[Classe],Cálculos!$C28,PontuaçõesClassetbl[Tipo],Cálculos!AE$5)*Configurações!G31,"") ->  | AF28: =IFERROR(AVERAGEIFS(PontuaçõesClassetbl[Pontuação],PontuaçõesClassetbl[Classe],Cálculos!$C28,PontuaçõesClassetbl[Tipo],Cálculos!AF$5)*Configurações!H31,"") ->  | AG28: =IFERROR(AVERAGEIFS(PontuaçõesClassetbl[Pontuação],PontuaçõesClassetbl[Classe],Cálculos!$C28,PontuaçõesClassetbl[Tipo],Cálculos!AG$5)*Configurações!I31,"") ->  | AH28: =IFERROR(AVERAGEIFS(PontuaçõesClassetbl[Pontuação],PontuaçõesClassetbl[Classe],Cálculos!$C28,PontuaçõesClassetbl[Tipo],Cálculos!AH$5)*Configurações!J31,"") ->  | AI28: =IFERROR(AVERAGEIFS(PontuaçõesClassetbl[Pontuação],PontuaçõesClassetbl[Classe],Cálculos!$C28,PontuaçõesClassetbl[Tipo],Cálculos!AI$5)*Configurações!K31,"") ->  | AJ28: 0 | AK28: =SUMIFS(Configurações!E31:K31,Cálculos!AC28:AI28,">0") -> 0
C29: =IF(Configurações!C32="","",Configurações!C32) ->  | AC29: =IFERROR(AVERAGEIFS(PontuaçõesClassetbl[Pontuação],PontuaçõesClassetbl[Classe],Cálculos!$C29,PontuaçõesClassetbl[Tipo],Cálculos!AC$5)*Configurações!E32,"") ->  | AD29: =IFERROR(AVERAGEIFS(PontuaçõesClassetbl[Pontuação],PontuaçõesClassetbl[Classe],Cálculos!$C29,PontuaçõesClassetbl[Tipo],Cálculos!AD$5)*Configurações!F32,"") ->  | AE29: =IFERROR(AVERAGEIFS(PontuaçõesClassetbl[Pontuação],PontuaçõesClassetbl[Classe],Cálculos!$C29,PontuaçõesClassetbl[Tipo],Cálculos!AE$5)*Configurações!G32,"") ->  | AF29: =IFERROR(AVERAGEIFS(PontuaçõesClassetbl[Pontuação],PontuaçõesClassetbl[Classe],Cálculos!$C29,PontuaçõesClassetbl[Tipo],Cálculos!AF$5)*Configurações!H32,"") ->  | AG29: =IFERROR(AVERAGEIFS(PontuaçõesClassetbl[Pontuação],PontuaçõesClassetbl[Classe],Cálculos!$C29,PontuaçõesClassetbl[Tipo],Cálculos!AG$5)*Configurações!I32,"") ->  | AH29: =IFERROR(AVERAGEIFS(PontuaçõesClassetbl[Pontuação],PontuaçõesClassetbl[Classe],Cálculos!$C29,PontuaçõesClassetbl[Tipo],Cálculos!AH$5)*Configurações!J32,"") ->  | AI29: =IFERROR(AVERAGEIFS(PontuaçõesClassetbl[Pontuação],PontuaçõesClassetbl[Classe],Cálculos!$C29,PontuaçõesClassetbl[Tipo],Cálculos!AI$5)*Configurações!K32,"") ->  | AJ29: 0 | AK29: =SUMIFS(Configurações!E32:K32,Cálculos!AC29:AI29,">0") -> 0
C30: =IF(Configurações!C33="","",Configurações!C33) ->  | AC30: =IFERROR(AVERAGEIFS(PontuaçõesClassetbl[Pontuação],PontuaçõesClassetbl[Classe],Cálculos!$C30,PontuaçõesClassetbl[Tipo],Cálculos!AC$5)*Configurações!E33,"") ->  | AD30: =IFERROR(AVERAGEIFS(PontuaçõesClassetbl[Pontuação],PontuaçõesClassetbl[Classe],Cálculos!$C30,PontuaçõesClassetbl[Tipo],Cálculos!AD$5)*Configurações!F33,"") ->  | AE30: =IFERROR(AVERAGEIFS(PontuaçõesClassetbl[Pontuação],PontuaçõesClassetbl[Classe],Cálculos!$C30,PontuaçõesClassetbl[Tipo],Cálculos!AE$5)*Configurações!G33,"") ->  | AF30: =IFERROR(AVERAGEIFS(PontuaçõesClassetbl[Pontuação],PontuaçõesClassetbl[Classe],Cálculos!$C30,PontuaçõesClassetbl[Tipo],Cálculos!AF$5)*Configurações!H33,"") ->  | AG30: =IFERROR(AVERAGEIFS(PontuaçõesClassetbl[Pontuação],PontuaçõesClassetbl[Classe],Cálculos!$C30,PontuaçõesClassetbl[Tipo],Cálculos!AG$5)*Configurações!I33,"") ->  | AH30: =IFERROR(AVERAGEIFS(PontuaçõesClassetbl[Pontuação],PontuaçõesClassetbl[Classe],Cálculos!$C30,PontuaçõesClassetbl[Tipo],Cálculos!AH$5)*Configurações!J33,"") ->  | AI30: =IFERROR(AVERAGEIFS(PontuaçõesClassetbl[Pontuação],PontuaçõesClassetbl[Classe],Cálculos!$C30,PontuaçõesClassetbl[Tipo],Cálculos!AI$5)*Configurações!K33,"") ->  | AJ30: 0 | AK30: =SUMIFS(Configurações!E33:K33,Cálculos!AC30:AI30,">0") -> 0
B33: 1 | C33: ='Controlador de Pontuação'!C4&COUNTIF('Controlador de Pontuação'!$C$4:C4,'Controlador de Pontuação'!C4) -> Francês Moderno1
B34: 2 | C34: ='Controlador de Pontuação'!C5&COUNTIF('Controlador de Pontuação'!$C$4:C5,'Controlador de Pontuação'!C5) -> Programação Avançada em Java1
B35: 3 | C35: ='Controlador de Pontuação'!C6&COUNTIF('Controlador de Pontuação'!$C$4:C6,'Controlador de Pontuação'!C6) -> Espanhol1
B36: 4 | C36: ='Controlador de Pontuação'!C7&COUNTIF('Controlador de Pontuação'!$C$4:C7,'Controlador de Pontuação'!C7) -> Física Teórica1
B37: 5 | C37: ='Controlador de Pontuação'!C8&COUNTIF('Controlador de Pontuação'!$C$4:C8,'Controlador de Pontuação'!C8) -> Francês Moderno2
B38: 6 | C38: ='Controlador de Pontuação'!C9&COUNTIF('Controlador de Pontuação'!$C$4:C9,'Controlador de Pontuação'!C9) -> Francês Moderno3
B39: 7 | C39: ='Controlador de Pontuação'!C10&COUNTIF('Controlador de Pontuação'!$C$4:C10,'Controlador de Pontuação'!C10) -> Composição1
B40: 8 | C40: ='Controlador de Pontuação'!C11&COUNTIF('Controlador de Pontuação'!$C$4:C11,'Controlador de Pontuação'!C11) -> Matemática 11
B41: 9 | C41: ='Controlador de Pontuação'!C12&COUNTIF('Controlador de Pontuação'!$C$4:C12,'Controlador de Pontuação'!C12) -> Matemática 21
B42: 10 | C42: ='Controlador de Pontuação'!C13&COUNTIF('Controlador de Pontuação'!$C$4:C14,'Controlador de Pontuação'!C13) -> Matemática 12
B43: 11 | C43: ='Controlador de Pontuação'!C14&COUNTIF('Controlador de Pontuação'!$C$4:C14,'Controlador de Pontuação'!C14) -> Matemática 22
B44: 12 | C44: ='Controlador de Pontuação'!C15&COUNTIF('Controlador de Pontuação'!$C$4:C15,'Controlador de Pontuação'!C15) -> 0
B45: 13 | C45: ='Controlador de Pontuação'!C16&COUNTIF('Controlador de Pontuação'!$C$4:C16,'Controlador de Pontuação'!C16) -> 0
B46: 14 | C46: ='Controlador de Pontuação'!C17&COUNTIF('Controlador de Pontuação'!$C$4:C17,'Controlador de Pontuação'!C17) -> 0
B47: 15 | C47: ='Controlador de Pontuação'!C18&COUNTIF('Controlador de Pontuação'!$C$4:C18,'Controlador de Pontuação'!C18) -> 0
B48: 16 | C48: ='Controlador de Pontuação'!C19&COUNTIF('Controlador de Pontuação'!$C$4:C19,'Controlador de Pontuação'!C19) -> 0
B49: 17 | C49: ='Controlador de Pontuação'!C20&COUNTIF('Controlador de Pontuação'!$C$4:C20,'Controlador de Pontuação'!C20) -> 0
B50: 18 | C50: ='Controlador de Pontuação'!C21&COUNTIF('Controlador de Pontuação'!$C$4:C21,'Controlador de Pontuação'!C21) -> 0
B51: 19 | C51: ='Controlador de Pontuação'!C22&COUNTIF('Controlador de Pontuação'!$C$4:C22,'Controlador de Pontuação'!C22) -> 0
B52: 20 | C52: ='Controlador de Pontuação'!C23&COUNTIF('Controlador de Pontuação'!$C$4:C23,'Controlador de Pontuação'!C23) -> 0
B53: 21 | C53: ='Controlador de Pontuação'!C24&COUNTIF('Controlador de Pontuação'!$C$4:C24,'Controlador de Pontuação'!C24) -> 0
B54: 22 | C54: ='Controlador de Pontuação'!C25&COUNTIF('Controlador de Pontuação'!$C$4:C25,'Controlador de Pontuação'!C25) -> 0
B55: 23 | C55: ='Controlador de Pontuação'!C26&COUNTIF('Controlador de Pontuação'!$C$4:C26,'Controlador de Pontuação'!C26) -> 0
B56: 24 | C56: ='Controlador de Pontuação'!C27&COUNTIF('Controlador de Pontuação'!$C$4:C27,'Controlador de Pontuação'!C27) -> 0
B57: 25 | C57: ='Controlador de Pontuação'!C28&COUNTIF('Controlador de Pontuação'!$C$4:C28,'Controlador de Pontuação'!C28) -> 0
B58: 26 | C58: ='Controlador de Pontuação'!C29&COUNTIF('Controlador de Pontuação'!$C$4:C29,'Controlador de Pontuação'!C29) -> 0
B59: 27 | C59: ='Controlador de Pontuação'!C30&COUNTIF('Controlador de Pontuação'!$C$4:C30,'Controlador de Pontuação'!C30) -> 0
B60: 28 | C60: ='Controlador de Pontuação'!C31&COUNTIF('Controlador de Pontuação'!$C$4:C31,'Controlador de Pontuação'!C31) -> 0
B61: 29 | C61: ='Controlador de Pontuação'!C32&COUNTIF('Controlador de Pontuação'!$C$4:C32,'Controlador de Pontuação'!C32) -> 0
B62: 30 | C62: ='Controlador de Pontuação'!C33&COUNTIF('Controlador de Pontuação'!$C$4:C33,'Controlador de Pontuação'!C33) -> 0
B63: 31 | C63: ='Controlador de Pontuação'!C34&COUNTIF('Controlador de Pontuação'!$C$4:C34,'Controlador de Pontuação'!C34) -> 0
B64: 32 | C64: ='Controlador de Pontuação'!C35&COUNTIF('Controlador de Pontuação'!$C$4:C35,'Controlador de Pontuação'!C35) -> 0
B65: 33 | C65: ='Controlador de Pontuação'!C36&COUNTIF('Controlador de Pontuação'!$C$4:C36,'Controlador de Pontuação'!C36) -> 0
B66: 34 | C66: ='Controlador de Pontuação'!C37&COUNTIF('Controlador de Pontuação'!$C$4:C37,'Controlador de Pontuação'!C37) -> 0
B67: 35 | C67: ='Controlador de Pontuação'!C38&COUNTIF('Controlador de Pontuação'!$C$4:C38,'Controlador de Pontuação'!C38) -> 0
B68: 36 | C68: ='Controlador de Pontuação'!C39&COUNTIF('Controlador de Pontuação'!$C$4:C39,'Controlador de Pontuação'!C39) -> 0
B69: 37 | C69: ='Controlador de Pontuação'!C40&COUNTIF('Controlador de Pontuação'!$C$4:C40,'Controlador de Pontuação'!C40) -> 0
B70: 38 | C70: ='Controlador de Pontuação'!C41&COUNTIF('Controlador de Pontuação'!$C$4:C41,'Controlador de Pontuação'!C41) -> 0
B71: 39 | C71: ='Controlador de Pontuação'!C42&COUNTIF('Controlador de Pontuação'!$C$4:C42,'Controlador de Pontuação'!C42) -> 0
B72: 40 | C72: ='Controlador de Pontuação'!C43&COUNTIF('Controlador de Pontuação'!$C$4:C43,'Controlador de Pontuação'!C43) -> 0
B73: 41 | C73: ='Controlador de Pontuação'!C44&COUNTIF('Controlador de Pontuação'!$C$4:C44,'Controlador de Pontuação'!C44) -> 0
B74: 42 | C74: ='Controlador de Pontuação'!C45&COUNTIF('Controlador de Pontuação'!$C$4:C45,'Controlador de Pontuação'!C45) -> 0
B75: 43 | C75: ='Controlador de Pontuação'!C46&COUNTIF('Controlador de Pontuação'!$C$4:C46,'Controlador de Pontuação'!C46) -> 0
B76: 44 | C76: ='Controlador de Pontuação'!C47&COUNTIF('Controlador de Pontuação'!$C$4:C47,'Controlador de Pontuação'!C47) -> 0
B77: 45 | C77: ='Controlador de Pontuação'!C48&COUNTIF('Controlador de Pontuação'!$C$4:C48,'Controlador de Pontuação'!C48) -> 0
B78: 46 | C78: ='Controlador de Pontuação'!C49&COUNTIF('Controlador de Pontuação'!$C$4:C49,'Controlador de Pontuação'!C49) -> 0
B79: 47 | C79: ='Controlador de Pontuação'!C50&COUNTIF('Controlador de Pontuação'!$C$4:C50,'Controlador de Pontuação'!C50) -> 0
B80: 48 | C80: ='Controlador de Pontuação'!C51&COUNTIF('Controlador de Pontuação'!$C$4:C51,'Controlador de Pontuação'!C51) -> 0
B81: 49 | C81: ='Controlador de Pontuação'!C52&COUNTIF('Controlador de Pontuação'!$C$4:C52,'Controlador de Pontuação'!C52) -> 0
B82: 50 | C82: ='Controlador de Pontuação'!C53&COUNTIF('Controlador de Pontuação'!$C$4:C53,'Controlador de Pontuação'!C53) -> 0
B83: 51 | C83: ='Controlador de Pontuação'!C54&COUNTIF('Controlador de Pontuação'!$C$4:C54,'Controlador de Pontuação'!C54) -> 0
B84: 52 | C84: ='Controlador de Pontuação'!C55&COUNTIF('Controlador de Pontuação'!$C$4:C55,'Controlador de Pontuação'!C55) -> 0
B85: 53 | C85: ='Controlador de Pontuação'!C56&COUNTIF('Controlador de Pontuação'!$C$4:C56,'Controlador de Pontuação'!C56) -> 0
B86: 54 | C86: ='Controlador de Pontuação'!C57&COUNTIF('Controlador de Pontuação'!$C$4:C57,'Controlador de Pontuação'!C57) -> 0
B87: 55 | C87: ='Controlador de Pontuação'!C58&COUNTIF('Controlador de Pontuação'!$C$4:C58,'Controlador de Pontuação'!C58) -> 0
B88: 56 | C88: ='Controlador de Pontuação'!C59&COUNTIF('Controlador de Pontuação'!$C$4:C59,'Controlador de Pontuação'!C59) -> 0
B89: 57 | C89: ='Controlador de Pontuação'!C60&COUNTIF('Controlador de Pontuação'!$C$4:C60,'Controlador de Pontuação'!C60) -> 0
B90: 58 | C90: ='Controlador de Pontuação'!C61&COUNTIF('Controlador de Pontuação'!$C$4:C61,'Controlador de Pontuação'!C61) -> 0
B91: 59 | C91: ='Controlador de Pontuação'!C62&COUNTIF('Controlador de Pontuação'!$C$4:C62,'Controlador de Pontuação'!C62) -> 0
B92: 60 | C92: ='Controlador de Pontuação'!C63&COUNTIF('Controlador de Pontuação'!$C$4:C63,'Controlador de Pontuação'!C63) -> 0
B93: 61 | C93: ='Controlador de Pontuação'!C64&COUNTIF('Controlador de Pontuação'!$C$4:C64,'Controlador de Pontuação'!C64) -> 0
B94: 62 | C94: ='Controlador de Pontuação'!C65&COUNTIF('Controlador de Pontuação'!$C$4:C65,'Controlador de Pontuação'!C65) -> 0
B95: 63 | C95: ='Controlador de Pontuação'!C66&COUNTIF('Controlador de Pontuação'!$C$4:C66,'Controlador de Pontuação'!C66) -> 0
B96: 64 | C96: ='Controlador de Pontuação'!C67&COUNTIF('Controlador de Pontuação'!$C$4:C67,'Controlador de Pontuação'!C67) -> 0
B97: 65 | C97: ='Controlador de Pontuação'!C68&COUNTIF('Controlador de Pontuação'!$C$4:C68,'Controlador de Pontuação'!C68) -> 0
B98: 66 | C98: ='Controlador de Pontuação'!C69&COUNTIF('Controlador de Pontuação'!$C$4:C69,'Controlador de Pontuação'!C69) -> 0
B99: 67 | C99: ='Controlador de Pontuação'!C70&COUNTIF('Controlador de Pontuação'!$C$4:C70,'Controlador de Pontuação'!C70) -> 0
B100: 68 | C100: ='Controlador de Pontuação'!C71&COUNTIF('Controlador de Pontuação'!$C$4:C71,'Controlador de Pontuação'!C71) -> 0
B101: 69 | C101: ='Controlador de Pontuação'!C72&COUNTIF('Controlador de Pontuação'!$C$4:C72,'Controlador de Pontuação'!C72) -> 0
B102: 70 | C102: ='Controlador de Pontuação'!C73&COUNTIF('Controlador de Pontuação'!$C$4:C73,'Controlador de Pontuação'!C73) -> 0
B103: 71 | C103: ='Controlador de Pontuação'!C74&COUNTIF('Controlador de Pontuação'!$C$4:C74,'Controlador de Pontuação'!C74) -> 0
B104: 72 | C104: ='Controlador de Pontuação'!C75&COUNTIF('Controlador de Pontuação'!$C$4:C75,'Controlador de Pontuação'!C75) -> 0
B105: 73 | C105: ='Controlador de Pontuação'!C76&COUNTIF('Controlador de Pontuação'!$C$4:C76,'Controlador de Pontuação'!C76) -> 0
B106: 74 | C106: ='Controlador de Pontuação'!C77&COUNTIF('Controlador de Pontuação'!$C$4:C77,'Controlador de Pontuação'!C77) -> 0
B107: 75 | C107: ='Controlador de Pontuação'!C78&COUNTIF('Controlador de Pontuação'!$C$4:C78,'Controlador de Pontuação'!C78) -> 0
B108: 76 | C108: ='Controlador de Pontuação'!C79&COUNTIF('Controlador de Pontuação'!$C$4:C79,'Controlador de Pontuação'!C79) -> 0
B109: 77 | C109: ='Controlador de Pontuação'!C80&COUNTIF('Controlador de Pontuação'!$C$4:C80,'Controlador de Pontuação'!C80) -> 0
B110: 78 | C110: ='Controlador de Pontuação'!C81&COUNTIF('Controlador de Pontuação'!$C$4:C81,'Controlador de Pontuação'!C81) -> 0
B111: 79 | C111: ='Controlador de Pontuação'!C82&COUNTIF('Controlador de Pontuação'!$C$4:C82,'Controlador de Pontuação'!C82) -> 0
B112: 80 | C112: ='Controlador de Pontuação'!C83&COUNTIF('Controlador de Pontuação'!$C$4:C83,'Controlador de Pontuação'!C83) -> 0
B113: 81 | C113: ='Controlador de Pontuação'!C84&COUNTIF('Controlador de Pontuação'!$C$4:C84,'Controlador de Pontuação'!C84) -> 0
B114: 82 | C114: ='Controlador de Pontuação'!C85&COUNTIF('Controlador de Pontuação'!$C$4:C85,'Controlador de Pontuação'!C85) -> 0
B115: 83 | C115: ='Controlador de Pontuação'!C86&COUNTIF('Controlador de Pontuação'!$C$4:C86,'Controlador de Pontuação'!C86) -> 0
B116: 84 | C116: ='Controlador de Pontuação'!C87&COUNTIF('Controlador de Pontuação'!$C$4:C87,'Controlador de Pontuação'!C87) -> 0
B117: 85 | C117: ='Controlador de Pontuação'!C88&COUNTIF('Controlador de Pontuação'!$C$4:C88,'Controlador de Pontuação'!C88) -> 0
B118: 86 | C118: ='Controlador de Pontuação'!C89&COUNTIF('Controlador de Pontuação'!$C$4:C89,'Controlador de Pontuação'!C89) -> 0
B119: 87 | C119: ='Controlador de Pontuação'!C90&COUNTIF('Controlador de Pontuação'!$C$4:C90,'Controlador de Pontuação'!C90) -> 0
B120: 88 | C120: ='Controlador de Pontuação'!C91&COUNTIF('Controlador de Pontuação'!$C$4:C91,'Controlador de Pontuação'!C91) -> 0
B121: 89 | C121: ='Controlador de Pontuação'!C92&COUNTIF('Controlador de Pontuação'!$C$4:C92,'Controlador de Pontuação'!C92) -> 0
B122: 90 | C122: ='Controlador de Pontuação'!C93&COUNTIF('Controlador de Pontuação'!$C$4:C93,'Controlador de Pontuação'!C93) -> 0
B123: 91 | C123: ='Controlador de Pontuação'!C94&COUNTIF('Controlador de Pontuação'!$C$4:C94,'Controlador de Pontuação'!C94) -> 0
B124: 92 | C124: ='Controlador de Pontuação'!C95&COUNTIF('Controlador de Pontuação'!$C$4:C95,'Controlador de Pontuação'!C95) -> 0
B125: 93 | C125: ='Controlador de Pontuação'!C96&COUNTIF('Controlador de Pontuação'!$C$4:C96,'Controlador de Pontuação'!C96) -> 0
B126: 94 | C126: ='Controlador de Pontuação'!C97&COUNTIF('Controlador de Pontuação'!$C$4:C97,'Controlador de Pontuação'!C97) -> 0
B127: 95 | C127: ='Controlador de Pontuação'!C98&COUNTIF('Controlador de Pontuação'!$C$4:C98,'Controlador de Pontuação'!C98) -> 0
B128: 96 | C128: ='Controlador de Pontuação'!C99&COUNTIF('Controlador de Pontuação'!$C$4:C99,'Controlador de Pontuação'!C99) -> 0
B129: 97 | C129: ='Controlador de Pontuação'!C100&COUNTIF('Controlador de Pontuação'!$C$4:C100,'Controlador de Pontuação'!C100) -> 0
B130: 98 | C130: ='Controlador de Pontuação'!C101&COUNTIF('Controlador de Pontuação'!$C$4:C101,'Controlador de Pontuação'!C101) -> 0
B131: 99 | C131: ='Controlador de Pontuação'!C102&COUNTIF('Controlador de Pontuação'!$C$4:C102,'Controlador de Pontuação'!C102) -> 0
B132: 100 | C132: ='Controlador de Pontuação'!C103&COUNTIF('Controlador de Pontuação'!$C$4:C103,'Controlador de Pontuação'!C103) -> 0
B133: 101 | C133: ='Controlador de Pontuação'!C104&COUNTIF('Controlador de Pontuação'!$C$4:C104,'Controlador de Pontuação'!C104) -> 0
B134: 102 | C134: ='Controlador de Pontuação'!C105&COUNTIF('Controlador de Pontuação'!$C$4:C105,'Controlador de Pontuação'!C105) -> 0
B135: 103 | C135: ='Controlador de Pontuação'!C106&COUNTIF('Controlador de Pontuação'!$C$4:C106,'Controlador de Pontuação'!C106) -> 0
B136: 104 | C136: ='Controlador de Pontuação'!C107&COUNTIF('Controlador de Pontuação'!$C$4:C107,'Controlador de Pontuação'!C107) -> 0
B137: 105 | C137: ='Controlador de Pontuação'!C108&COUNTIF('Controlador de Pontuação'!$C$4:C108,'Controlador de Pontuação'!C108) -> 0
B138: 106 | C138: ='Controlador de Pontuação'!C109&COUNTIF('Controlador de Pontuação'!$C$4:C109,'Controlador de Pontuação'!C109) -> 0
B139: 107 | C139: ='Controlador de Pontuação'!C110&COUNTIF('Controlador de Pontuação'!$C$4:C110,'Controlador de Pontuação'!C110) -> 0
B140: 108 | C140: ='Controlador de Pontuação'!C111&COUNTIF('Controlador de Pontuação'!$C$4:C111,'Controlador de Pontuação'!C111) -> 0
B141: 109 | C141: ='Controlador de Pontuação'!C112&COUNTIF('Controlador de Pontuação'!$C$4:C112,'Controlador de Pontuação'!C112) -> 0
B142: 110 | C142: ='Controlador de Pontuação'!C113&COUNTIF('Controlador de Pontuação'!$C$4:C113,'Controlador de Pontuação'!C113) -> 0
B143: 111 | C143: ='Controlador de Pontuação'!C114&COUNTIF('Controlador de Pontuação'!$C$4:C114,'Controlador de Pontuação'!C114) -> 0
B144: 112 | C144: ='Controlador de Pontuação'!C115&COUNTIF('Controlador de Pontuação'!$C$4:C115,'Controlador de Pontuação'!C115) -> 0
B145: 113 | C145: ='Controlador de Pontuação'!C116&COUNTIF('Controlador de Pontuação'!$C$4:C116,'Controlador de Pontuação'!C116) -> 0
B146: 114 | C146: ='Controlador de Pontuação'!C117&COUNTIF('Controlador de Pontuação'!$C$4:C117,'Controlador de Pontuação'!C117) -> 0
B147: 115 | C147: ='Controlador de Pontuação'!C118&COUNTIF('Controlador de Pontuação'!$C$4:C118,'Controlador de Pontuação'!C118) -> 0
B148: 116 | C148: ='Controlador de Pontuação'!C119&COUNTIF('Controlador de Pontuação'!$C$4:C119,'Controlador de Pontuação'!C119) -> 0
B149: 117 | C149: ='Controlador de Pontuação'!C120&COUNTIF('Controlador de Pontuação'!$C$4:C120,'Controlador de Pontuação'!C120) -> 0
B150: 118 | C150: ='Controlador de Pontuação'!C121&COUNTIF('Controlador de Pontuação'!$C$4:C121,'Controlador de Pontuação'!C121) -> 0
B151: 119 | C151: ='Controlador de Pontuação'!C122&COUNTIF('Controlador de Pontuação'!$C$4:C122,'Controlador de Pontuação'!C122) -> 0
B152: 120 | C152: ='Controlador de Pontuação'!C123&COUNTIF('Controlador de Pontuação'!$C$4:C123,'Controlador de Pontuação'!C123) -> 0
B153: 121 | C153: ='Controlador de Pontuação'!C124&COUNTIF('Controlador de Pontuação'!$C$4:C124,'Controlador de Pontuação'!C124) -> 0
B154: 122 | C154: ='Controlador de Pontuação'!C125&COUNTIF('Controlador de Pontuação'!$C$4:C125,'Controlador de Pontuação'!C125) -> 0
B155: 123 | C155: ='Controlador de Pontuação'!C126&COUNTIF('Controlador de Pontuação'!$C$4:C126,'Controlador de Pontuação'!C126) -> 0
B156: 124 | C156: ='Controlador de Pontuação'!C127&COUNTIF('Controlador de Pontuação'!$C$4:C127,'Controlador de Pontuação'!C127) -> 0
B157: 125 | C157: ='Controlador de Pontuação'!C128&COUNTIF('Controlador de Pontuação'!$C$4:C128,'Controlador de Pontuação'!C128) -> 0
B158: 126 | C158: ='Controlador de Pontuação'!C129&COUNTIF('Controlador de Pontuação'!$C$4:C129,'Controlador de Pontuação'!C129) -> 0
B159: 127 | C159: ='Controlador de Pontuação'!C130&COUNTIF('Controlador de Pontuação'!$C$4:C130,'Controlador de Pontuação'!C130) -> 0
B160: 128 | C160: ='Controlador de Pontuação'!C131&COUNTIF('Controlador de Pontuação'!$C$4:C131,'Controlador de Pontuação'!C131) -> 0
B161: 129 | C161: ='Controlador de Pontuação'!C132&COUNTIF('Controlador de Pontuação'!$C$4:C132,'Controlador de Pontuação'!C132) -> 0
B162: 130 | C162: ='Controlador de Pontuação'!C133&COUNTIF('Controlador de Pontuação'!$C$4:C133,'Controlador de Pontuação'!C133) -> 0
B163: 131 | C163: ='Controlador de Pontuação'!C134&COUNTIF('Controlador de Pontuação'!$C$4:C134,'Controlador de Pontuação'!C134) -> 0
B164: 132 | C164: ='Controlador de Pontuação'!C135&COUNTIF('Controlador de Pontuação'!$C$4:C135,'Controlador de Pontuação'!C135) -> 0
B165: 133 | C165: ='Controlador de Pontuação'!C136&COUNTIF('Controlador de Pontuação'!$C$4:C136,'Controlador de Pontuação'!C136) -> 0
B166: 134 | C166: ='Controlador de Pontuação'!C137&COUNTIF('Controlador de Pontuação'!$C$4:C137,'Controlador de Pontuação'!C137) -> 0
B167: 135 | C167: ='Controlador de Pontuação'!C138&COUNTIF('Controlador de Pontuação'!$C$4:C138,'Controlador de Pontuação'!C138) -> 0
B168: 136 | C168: ='Controlador de Pontuação'!C139&COUNTIF('Controlador de Pontuação'!$C$4:C139,'Controlador de Pontuação'!C139) -> 0
B169: 137 | C169: ='Controlador de Pontuação'!C140&COUNTIF('Controlador de Pontuação'!$C$4:C140,'Controlador de Pontuação'!C140) -> 0
B170: 138 | C170: ='Controlador de Pontuação'!C141&COUNTIF('Controlador de Pontuação'!$C$4:C141,'Controlador de Pontuação'!C141) -> 0
B171: 139 | C171: ='Controlador de Pontuação'!C142&COUNTIF('Controlador de Pontuação'!$C$4:C142,'Controlador de Pontuação'!C142) -> 0
B172: 140 | C172: ='Controlador de Pontuação'!C143&COUNTIF('Controlador de Pontuação'!$C$4:C143,'Controlador de Pontuação'!C143) -> 0
B173: 141 | C173: ='Controlador de Pontuação'!C144&COUNTIF('Controlador de Pontuação'!$C$4:C144,'Controlador de Pontuação'!C144) -> 0
B174: 142 | C174: ='Controlador de Pontuação'!C145&COUNTIF('Controlador de Pontuação'!$C$4:C145,'Controlador de Pontuação'!C145) -> 0
B175: 143 | C175: ='Controlador de Pontuação'!C146&COUNTIF('Controlador de Pontuação'!$C$4:C146,'Controlador de Pontuação'!C146) -> 0
B176: 144 | C176: ='Controlador de Pontuação'!C147&COUNTIF('Controlador de Pontuação'!$C$4:C147,'Controlador de Pontuação'!C147) -> 0
B177: 145 | C177: ='Controlador de Pontuação'!C148&COUNTIF('Controlador de Pontuação'!$C$4:C148,'Controlador de Pontuação'!C148) -> 0
B178: 146 | C178: ='Controlador de Pontuação'!C149&COUNTIF('Controlador de Pontuação'!$C$4:C149,'Controlador de Pontuação'!C149) -> 0
B179: 147 | C179: ='Controlador de Pontuação'!C150&COUNTIF('Controlador de Pontuação'!$C$4:C150,'Controlador de Pontuação'!C150) -> 0
B180: 148 | C180: ='Controlador de Pontuação'!C151&COUNTIF('Controlador de Pontuação'!$C$4:C151,'Controlador de Pontuação'!C151) -> 0
B181: 149 | C181: ='Controlador de Pontuação'!C152&COUNTIF('Controlador de Pontuação'!$C$4:C152,'Controlador de Pontuação'!C152) -> 0
B182: 150 | C182: ='Controlador de Pontuação'!C153&COUNTIF('Controlador de Pontuação'!$C$4:C153,'Controlador de Pontuação'!C153) -> 0
B183: 151 | C183: ='Controlador de Pontuação'!C154&COUNTIF('Controlador de Pontuação'!$C$4:C154,'Controlador de Pontuação'!C154) -> 0
B184: 152 | C184: ='Controlador de Pontuação'!C155&COUNTIF('Controlador de Pontuação'!$C$4:C155,'Controlador de Pontuação'!C155) -> 0
B185: 153 | C185: ='Controlador de Pontuação'!C156&COUNTIF('Controlador de Pontuação'!$C$4:C156,'Controlador de Pontuação'!C156) -> 0
B186: 154 | C186: ='Controlador de Pontuação'!C157&COUNTIF('Controlador de Pontuação'!$C$4:C157,'Controlador de Pontuação'!C157) -> 0
B187: 155 | C187: ='Controlador de Pontuação'!C158&COUNTIF('Controlador de Pontuação'!$C$4:C158,'Controlador de Pontuação'!C158) -> 0
B188: 156 | C188: ='Controlador de Pontuação'!C159&COUNTIF('Controlador de Pontuação'!$C$4:C159,'Controlador de Pontuação'!C159) -> 0
B189: 157 | C189: ='Controlador de Pontuação'!C160&COUNTIF('Controlador de Pontuação'!$C$4:C160,'Controlador de Pontuação'!C160) -> 0
B190: 158 | C190: ='Controlador de Pontuação'!C161&COUNTIF('Controlador de Pontuação'!$C$4:C161,'Controlador de Pontuação'!C161) -> 0
B191: 159 | C191: ='Controlador de Pontuação'!C162&COUNTIF('Controlador de Pontuação'!$C$4:C162,'Controlador de Pontuação'!C162) -> 0
B192: 160 | C192: ='Controlador de Pontuação'!C163&COUNTIF('Controlador de Pontuação'!$C$4:C163,'Controlador de Pontuação'!C163) -> 0
B193: 161 | C193: ='Controlador de Pontuação'!C164&COUNTIF('Controlador de Pontuação'!$C$4:C164,'Controlador de Pontuação'!C164) -> 0
B194: 162 | C194: ='Controlador de Pontuação'!C165&COUNTIF('Controlador de Pontuação'!$C$4:C165,'Controlador de Pontuação'!C165) -> 0
B195: 163 | C195: ='Controlador de Pontuação'!C166&COUNTIF('Controlador de Pontuação'!$C$4:C166,'Controlador de Pontuação'!C166) -> 0
B196: 164 | C196: ='Controlador de Pontuação'!C167&COUNTIF('Controlador de Pontuação'!$C$4:C167,'Controlador de Pontuação'!C167) -> 0
B197: 165 | C197: ='Controlador de Pontuação'!C168&COUNTIF('Controlador de Pontuação'!$C$4:C168,'Controlador de Pontuação'!C168) -> 0
B198: 166 | C198: ='Controlador de Pontuação'!C169&COUNTIF('Controlador de Pontuação'!$C$4:C169,'Controlador de Pontuação'!C169) -> 0
B199: 167 | C199: ='Controlador de Pontuação'!C170&COUNTIF('Controlador de Pontuação'!$C$4:C170,'Controlador de Pontuação'!C170) -> 0
B200: 168 | C200: ='Controlador de Pontuação'!C171&COUNTIF('Controlador de Pontuação'!$C$4:C171,'Controlador de Pontuação'!C171) -> 0
B201: 169 | C201: ='Controlador de Pontuação'!C172&COUNTIF('Controlador de Pontuação'!$C$4:C172,'Controlador de Pontuação'!C172) -> 0
B202: 170 | C202: ='Controlador de Pontuação'!C173&COUNTIF('Controlador de Pontuação'!$C$4:C173,'Controlador de Pontuação'!C173) -> 0
B203: 171 | C203: ='Controlador de Pontuação'!C174&COUNTIF('Controlador de Pontuação'!$C$4:C174,'Controlador de Pontuação'!C174) -> 0
... 454 more rows
